fUST/lending_fUST_20250117
["ID","MTS","AMOUNT","RATE_DAILY","PERIOD"]
[349293052,1737101445661,-151.0,0.00022328,7]
[349293054,1737101445671,-13159.47,0.00022328,3]
[349293056,1737101445681,-621.94,0.00022328,3]
[349293058,1737101445690,-274.15565525,0.00022328,3]
[349293060,1737101445700,-1455.27,0.00022328,3]
[349293062,1737101445709,-151.0,0.00022328,7]
[349293064,1737101445719,-500.0,0.00022328,3]
[349293066,1737101445728,-500.0,0.00022328,3]
[349293068,1737101445737,-653.03,0.00022328,2]
[349293070,1737101445747,-151.0,0.00022328,7]
[349293072,1737101445756,-151.0,0.00022328,7]
[349293074,1737101445765,-558.82,0.00022328,3]
[349293076,1737101445775,-151.0,0.00022328,7]
[349293078,1737101445784,-154.692066,0.00022328,7]
[349293080,1737101445793,-154.692066,0.00022328,7]
[349293082,1737101445803,-151.0,0.00022328,7]
[349293084,1737101445811,-151.0,0.00022328,7]
[349293086,1737101445821,-500.0,0.00022328,3]
[349293088,1737101445830,-500.0,0.00022328,3]
[349293090,1737101445839,-151.0,0.00022328,7]
[349293092,1737101445848,-834.57,0.00022328,3]
[349293094,1737101445858,-17378.52,0.00022328,3]
[349293096,1737101445868,-500.0,0.00022328,3]
[349293098,1737101445877,-151.0,0.00022328,7]
[349293100,1737101445886,-500.0,0.00022328,3]
[349293102,1737101445895,-500.0,0.00022328,3]
[349293104,1737101445904,-500.0,0.00022328,3]
[349293106,1737101445913,-318.555153,0.00022328,7]
[349293108,1737101445923,-1561.39,0.00022328,3]
[349293110,1737101445932,-318.555153,0.00022328,7]
[349293112,1737101445941,-500.0,0.00022328,3]
[349293114,1737101445951,-1021.02,0.00022328,3]
[349293116,1737101445960,-500.0,0.00022328,3]
[349293118,1737101445970,-151.0,0.00022328,7]
[349293121,1737101445980,-14393.76,0.00022328,3]
[349293123,1737101445990,-151.0,0.00022328,7]
[349293125,1737101446000,-500.0,0.00022328,3]
[349293127,1737101446010,-159.783995,0.00022328,7]
[349293129,1737101446019,-500.0,0.00022328,3]
[349293131,1737101446028,-151.0,0.00022328,7]
[349293133,1737101446038,-500.0,0.00022328,3]
[349293135,1737101446048,-151.0,0.00022328,7]
[349293137,1737101446057,-500.0,0.00022328,3]
[349293140,1737101446066,-1412.08,0.00022328,3]
[349293142,1737101446076,-590.22,0.00022328,3]
[349293144,1737101446085,-500.0,0.00022328,3]
[349293146,1737101446094,-500.0,0.00022328,3]
[349293148,1737101446103,-500.0,0.00022328,3]
[349293150,1737101446113,-3854.5,0.00022328,3]
[349293152,1737101446122,-500.0,0.00022328,3]
[349293154,1737101446132,-1014.36,0.00022328,3]
[349293156,1737101446141,-500.0,0.00022328,3]
[349293158,1737101446150,-500.0,0.00022328,3]
[349293161,1737101446160,-392.90168178,0.00022328,3]
[349293163,1737101446169,-151.0,0.00022328,7]
[349293165,1737101446178,-500.0,0.00022328,3]
[349293167,1737101446188,-483.37739711,0.00022328,3]
[349293168,1737101446197,-4907.47,0.00022328,3]
[349293170,1737101446206,-500.0,0.00022328,3]
[349293172,1737101446216,-5287.59,0.00022328,3]
[349293174,1737101446225,-500.0,0.00022328,3]
[349293176,1737101446235,-500.0,0.00022328,3]
[349293178,1737101446245,-500.0,0.00022328,3]
[349293180,1737101446255,-500.0,0.00022328,3]
[349293182,1737101446265,-500.0,0.00022328,3]
[349293184,1737101446275,-500.0,0.00022328,3]
[349293186,1737101446289,-10254.85,0.00022328,3]
[349293188,1737101446298,-1330.37,0.00022328,3]
[349293190,1737101446308,-2909.15,0.00022328,3]
[349293192,1737101446318,-500.0,0.00022328,3]
[349293194,1737101446328,-151.0,0.00022328,7]
[349293196,1737101446337,-500.0,0.00022328,3]
[349293199,1737101446347,-500.0,0.00022328,3]
[349293200,1737101446358,-500.0,0.00022328,3]
[349293202,1737101446368,-500.0,0.00022328,3]
[349293204,1737101446377,-838.79,0.00022328,3]
[349293206,1737101446386,-500.0,0.00022328,3]
[349293208,1737101446396,-151.0,0.00022358,6]
[349293210,1737101446405,-1618.0439533,0.00022383,3]
[349293212,1737101446415,-188.0,0.000224,2]
[349293214,1737101446424,-505.617168,0.000224,7]
[349293216,1737101446434,-505.617168,0.000224,7]
[349293218,1737101446444,-300.0,0.000224,10]
[349293220,1737101446454,-1618.0439533,0.00022452,3]
[349293223,1737101446464,-500.0,0.00022465,3]
[349293225,1737101446473,-151.0,0.00022465,7]
[349293226,1737101446484,-500.0,0.00022465,3]
[349293228,1737101446497,-151.0,0.00022465,7]
[349293230,1737101446507,-151.0,0.00022465,7]
[349293233,1737101446517,-151.0,0.00022465,7]
[349293234,1737101446526,-156.257349,0.00022465,7]
[349293236,1737101446536,-151.0,0.00022465,7]
[349293239,1737101446546,-500.0,0.00022465,3]
[349293241,1737101446556,-500.0,0.00022465,3]
[349293242,1737101446566,-2472.22,0.00022465,3]
[349293244,1737101446575,-576.41909257,0.00022465,3]
[349293246,1737101446584,-500.0,0.00022465,3]
[349293249,1737101446594,-500.0,0.00022465,3]
[349293251,1737101446604,-500.0,0.00022465,3]
[349293253,1737101446613,-528.73004212,0.00022465,3]
[349293255,1737101446623,-500.0,0.00022465,3]
[349293256,1737101446632,-2477.5,0.00022465,3]
[349293258,1737101446641,-500.0,0.00022465,3]
[349293260,1737101446651,-500.0,0.00022465,3]
[349293262,1737101446661,-500.0,0.00022465,2]
[349293265,1737101446671,-500.0,0.00022465,3]
[349293267,1737101446680,-500.0,0.00022465,3]
[349293268,1737101446689,-13159.47,0.00022465,3]
[349293270,1737101446699,-1455.27,0.00022465,3]
[349293272,1737101446708,-151.0,0.00022465,7]
[349293274,1737101446717,-500.0,0.00022465,3]
[349293276,1737101446726,-223.59965198,0.00022465,3]
[349293278,1737101446735,-653.03,0.00022465,2]
[349293280,1737101446744,-151.0,0.00022465,7]
[349293282,1737101446754,-176.128494,0.00022465,7]
[349293284,1737101446763,-151.0,0.00022465,7]
[349293286,1737101446772,-154.692066,0.00022465,7]
[349293289,1737101446781,-154.692066,0.00022465,7]
[349293291,1737101446790,-151.0,0.00022465,7]
[349293293,1737101446799,-151.0,0.00022465,7]
[349293295,1737101446809,-470.26,0.00022465,3]
[349293297,1737101446818,-500.0,0.00022465,3]
[349293299,1737101446826,-834.57,0.00022465,3]
[349293300,1737101446835,-17378.52,0.00022465,3]
[349293302,1737101446845,-500.0,0.00022465,3]
[349293304,1737101446854,-151.0,0.00022465,7]
[349293306,1737101446863,-500.0,0.00022465,3]
[349293308,1737101446872,-500.0,0.00022465,3]
[349293310,1737101446881,-500.0,0.00022465,3]
[349293312,1737101446890,-318.555153,0.00022465,7]
[349293314,1737101446900,-1561.39,0.00022465,3]
[349293316,1737101446909,-318.555153,0.00022465,7]
[349293318,1737101446918,-500.0,0.00022465,3]
[349293320,1737101446928,-1021.02,0.00022465,3]
[349293322,1737101446937,-500.0,0.00022465,3]
[349293324,1737101446947,-14393.76,0.00022465,3]
[349293326,1737101446956,-241.0,0.00022465,3]
[349293328,1737101446965,-500.0,0.00022465,3]
[349293330,1737101446974,-500.0,0.00022465,3]
[349293332,1737101446983,-151.0,0.00022465,7]
[349293334,1737101446992,-500.0,0.00022465,3]
[349293336,1737101447001,-1412.08,0.00022465,3]
[349293338,1737101447011,-590.22,0.00022465,3]
[349293340,1737101447020,-468.92812175,0.00022465,3]
[349293342,1737101447029,-500.0,0.00022465,3]
[349293344,1737101447039,-500.0,0.00022465,3]
[349293346,1737101447050,-3854.5,0.00022465,3]
[349293348,1737101447061,-500.0,0.00022465,3]
[349293351,1737101447071,-1014.36,0.00022465,3]
[349293353,1737101447081,-415.22673669,0.00022465,3]
[349293355,1737101447091,-500.0,0.00022465,3]
[349293357,1737101447100,-151.0,0.00022465,7]
[349293358,1737101447110,-500.0,0.00022465,3]
[349293360,1737101447119,-4907.47,0.00022465,3]
[349293362,1737101447129,-500.0,0.00022465,3]
[349293364,1737101447138,-500.0,0.00022465,3]
[349293366,1737101447148,-5287.59,0.00022465,3]
[349293368,1737101447158,-500.0,0.00022465,3]
[349293370,1737101447167,-630.47,0.00022465,3]
[349293372,1737101447177,-500.0,0.00022465,3]
[349293374,1737101447186,-534.57,0.00022465,3]
[349293376,1737101447195,-500.0,0.00022465,3]
[349293378,1737101447204,-10254.85,0.00022465,3]
[349293380,1737101447213,-1330.37,0.00022465,3]
[349293383,1737101447223,-2909.15,0.00022465,3]
[349293385,1737101447232,-500.0,0.00022465,3]
[349293387,1737101447242,-259.409545,0.00022465,7]
[349293389,1737101447251,-500.0,0.00022465,3]
[349293390,1737101447261,-500.0,0.00022465,3]
[349293392,1737101447271,-515.12530594,0.00022465,3]
[349293394,1737101447284,-500.0,0.00022465,3]
[349293396,1737101447294,-838.79,0.00022465,3]
[349293398,1737101447303,-430.30507113,0.00022465,3]
[349293400,1737101447312,-160.0,0.00022482,6]
[349293402,1737101447322,-395.0,0.00022487,2]
[349293405,1737101447331,-151.0,0.000225,10]
[349293406,1737101447341,-151.0,0.000225,7]
[349293408,1737101447350,-8645.91,0.000225,2]
[349293411,1737101447360,-151.0,0.000225,7]
[349293412,1737101447370,-151.0,0.000225,7]
[349293415,1737101447380,-373.71658212,0.00022512,2]
[349293416,1737101447390,-500.0,0.00022521,2]
[349293419,1737101447400,-1618.0439533,0.00022521,3]
[349293420,1737101447410,-1200.0,0.00022562,2]
[349293422,1737101447419,-1618.0439533,0.0002259,3]
[349293424,1737101447428,-151.0,0.000226,7]
[349293427,1737101447438,-151.0,0.000226,9]
[349293429,1737101447447,-1337.60454689,0.00022602,3]
[349293430,1737101447457,-500.0,0.00022602,3]
[349293432,1737101447465,-311.01,0.00022602,3]
[349293434,1737101447475,-500.0,0.00022602,3]
[349293436,1737101447486,-500.0,0.00022602,3]
[349293438,1737101447496,-2472.22,0.00022602,3]
[349293441,1737101447505,-500.0,0.00022602,3]
[349293442,1737101447514,-500.0,0.00022602,3]
[349293445,1737101447524,-500.0,0.00022602,3]
[349293447,1737101447533,-214.87762562,0.00022602,3]
[349293449,1737101447543,-2477.5,0.00022602,3]
[349293451,1737101447552,-446.57,0.00022602,3]
[349293453,1737101447561,-596.07,0.00022602,3]
[349293455,1737101447570,-505.617168,0.00022602,7]
[349293457,1737101447579,-505.617168,0.00022602,7]
[349293458,1737101447588,-500.0,0.00022602,2]
[349293459,1737101447597,-215.52775442,0.00022602,3]
[349293460,1737101447606,-500.0,0.00022602,3]
[349293461,1737101447615,-13159.47,0.00022602,3]
[349293462,1737101447624,-1455.27,0.00022602,3]
[349293463,1737101447633,-403.33442851,0.00022602,3]
[349293464,1737101447642,-653.03,0.00022602,2]
[349293465,1737101447650,-500.0,0.00022602,3]
[349293466,1737101447659,-834.57,0.00022602,3]
[349293467,1737101447668,-17378.52,0.00022602,3]
[349293468,1737101447677,-500.0,0.00022602,3]
[349293469,1737101447686,-500.0,0.00022602,3]
[349293470,1737101447695,-500.0,0.00022602,3]
[349293471,1737101447704,-500.0,0.00022602,3]
[349293473,1737101447713,-1561.39,0.00022602,3]
[349293475,1737101447722,-500.0,0.00022602,3]
[349293476,1737101447731,-1021.02,0.00022602,3]
[349293478,1737101447740,-424.17,0.00022602,3]
[349293480,1737101447750,-8786.92328283,0.00022602,3]
[349293484,1737101447957,-5606.83671717,0.00022602,3]
[349293486,1737101447967,-500.0,0.00022602,3]
[349293488,1737101447976,-500.0,0.00022602,3]
[349293490,1737101447985,-500.0,0.00022602,3]
[349293492,1737101447994,-1412.08,0.00022602,3]
[349293493,1737101448004,-590.22,0.00022602,3]
[349293495,1737101448014,-500.0,0.00022602,3]
[349293497,1737101448023,-500.0,0.00022602,3]
[349293499,1737101448032,-3854.5,0.00022602,3]
[349293501,1737101448042,-500.0,0.00022602,3]
[349293502,1737101448052,-1014.36,0.00022602,3]
[349293504,1737101448062,-500.0,0.00022602,3]
[349293505,1737101448072,-500.0,0.00022602,3]
[349293506,1737101448081,-4907.47,0.00022602,3]
[349293507,1737101448091,-394.59,0.00022602,3]
[349293508,1737101448102,-500.0,0.00022602,3]
[349293509,1737101448112,-5287.59,0.00022602,3]
[349293511,1737101448122,-500.0,0.00022602,3]
[349293512,1737101448132,-500.0,0.00022602,3]
[349293514,1737101448142,-157.4,0.00022602,3]
[349293516,1737101448153,-10254.85,0.00022602,3]
[349293518,1737101448164,-1330.37,0.00022602,3]
[349293519,1737101448175,-2909.15,0.00022602,3]
[349293521,1737101448185,-500.0,0.00022602,3]
[349293522,1737101448195,-500.0,0.00022602,3]
[349293523,1737101448205,-500.0,0.00022602,3]
[349293524,1737101448215,-500.0,0.00022602,3]
[349293525,1737101448225,-838.79,0.00022602,3]
[349293527,1737101448234,-151.0,0.00022619,7]
[349293529,1737101448244,-407.53318731,0.00022621,2]
[349293531,1737101448253,-201.28546428,0.00022621,2]
[349293533,1737101448262,-1000.0,0.00022621,2]
[349293534,1737101448271,-1618.0439533,0.00022659,3]
[349293535,1737101448282,-500.0,0.00022683,11]
[349293536,1737101448292,-353.5775999,0.00022685,2]
[349293537,1737101448301,-353.5775999,0.00022685,2]
[349293539,1737101448309,-353.5775999,0.00022685,2]
[349293541,1737101448320,-353.5775999,0.00022685,2]
[349293542,1737101448330,-157.8036629,0.00022685,2]
[349293544,1737101448339,-151.0,0.000227,5]
[349293545,1737101448348,-151.0,0.000227,6]
[349293547,1737101448358,-160.0,0.00022711,7]
[349293548,1737101448365,-1618.0439533,0.00022728,3]
[349293550,1737101448372,-151.0,0.00022739,7]
[349293552,1737101448379,-152.851295,0.00022739,7]
[349293553,1737101448387,-500.0,0.00022739,3]
[349293555,1737101448396,-151.0,0.00022739,7]
[349293556,1737101448407,-151.0,0.00022739,7]
[349293558,1737101448417,-151.0,0.00022739,7]
[349293560,1737101448427,-500.0,0.00022739,3]
[349293562,1737101448437,-500.0,0.00022739,3]
[349293564,1737101448447,-2472.22,0.00022739,3]
[349293565,1737101448457,-500.0,0.00022739,3]
[349293567,1737101448467,-500.0,0.00022739,3]
[349293568,1737101448478,-500.0,0.00022739,3]
[349293569,1737101448488,-2477.5,0.00022739,3]
[349293570,1737101448497,-500.0,0.00022739,2]
[349293571,1737101448507,-642.65,0.00022739,3]
[349293572,1737101448516,-13159.47,0.00022739,3]
[349293573,1737101448526,-1455.27,0.00022739,3]
[349293574,1737101448535,-151.0,0.00022739,7]
[349293575,1737101448544,-653.03,0.00022739,2]
[349293576,1737101448554,-151.0,0.00022739,7]
[349293577,1737101448564,-153.815152,0.00022739,7]
[349293578,1737101448573,-154.692066,0.00022739,7]
[349293579,1737101448582,-154.692066,0.00022739,7]
[349293580,1737101448591,-151.0,0.00022739,7]
[349293581,1737101448601,-151.0,0.00022739,7]
[349293582,1737101448611,-500.0,0.00022739,3]
[349293583,1737101448621,-834.57,0.00022739,3]
[349293584,1737101448631,-17378.52,0.00022739,3]
[349293585,1737101448640,-500.0,0.00022739,3]
[349293586,1737101448650,-151.0,0.00022739,7]
[349293587,1737101448660,-500.0,0.00022739,3]
[349293588,1737101448670,-500.0,0.00022739,3]
[349293589,1737101448680,-300.64260147,0.00022739,3]
[349293590,1737101448722,-522.05,0.00021917,3]
[349293591,1737101448732,-500.0,0.00021917,3]
[349293592,1737101448742,-199.35739853,0.00022739,3]
[349293593,1737101448751,-318.555153,0.00022739,7]
[349293594,1737101448761,-948.86353053,0.00022739,3]
[349293595,1737101449166,-323.02234398,0.00021917,3]
[349293596,1737101449182,-176.97765602,0.00021917,3]
[349293597,1737101449192,-499.0,0.00021917,2]
[349293598,1737101449202,-500.0,0.00021917,3]
[349293599,1737101449212,-500.0,0.00021917,3]
[349293600,1737101449222,-500.0,0.00021917,3]
[349293601,1737101449232,-500.0,0.00022054,3]
[349293602,1737101449243,-500.0,0.00022191,3]
[349293603,1737101449253,-612.52646947,0.00022739,3]
[349293604,1737101449263,-318.555153,0.00022739,7]
[349293605,1737101449273,-216.05,0.00022739,3]
[349293606,1737101449285,-1021.02,0.00022739,3]
[349293607,1737101449296,-500.0,0.00022739,2]
[349293608,1737101449308,-14393.76,0.00022739,3]
[349293609,1737101449318,-151.0,0.00022739,7]
[349293610,1737101449329,-500.0,0.00022739,3]
[349293611,1737101449340,-500.0,0.00022739,3]
[349293612,1737101449351,-151.0,0.00022739,7]
[349293613,1737101449362,-500.0,0.00022739,3]
[349293614,1737101449372,-1412.08,0.00022739,3]
[349293615,1737101449382,-590.22,0.00022739,3]
[349293616,1737101449392,-500.0,0.00022739,3]
[349293617,1737101449401,-500.0,0.00022739,3]
[349293618,1737101449412,-3854.5,0.00022739,3]
[349293619,1737101449423,-500.0,0.00022739,3]
[349293620,1737101449433,-1014.36,0.00022739,3]
[349293621,1737101449443,-500.0,0.00022739,3]
[349293622,1737101449453,-500.0,0.00022739,3]
[349293623,1737101449463,-4907.47,0.00022739,3]
[349293624,1737101449473,-500.0,0.00022739,3]
[349293625,1737101449484,-5287.59,0.00022739,3]
[349293626,1737101449494,-162.56,0.00022739,3]
[349293627,1737101449504,-307.98,0.00022739,3]
[349293628,1737101449513,-1330.37,0.00022739,3]
[349293629,1737101449523,-2909.15,0.00022739,3]
[349293630,1737101449534,-500.0,0.00022739,3]
[349293631,1737101449543,-203.44,0.00022739,3]
[349293632,1737101449553,-500.0,0.00022739,3]
[349293633,1737101449563,-500.0,0.00022739,3]
[349293634,1737101449573,-838.79,0.00022739,3]
[349293635,1737101449582,-513.6661739,0.00022769,2]
[349293636,1737101449593,-373.71658212,0.0002277,2]
[349293637,1737101449602,-1618.0439533,0.00022797,3]
[349293638,1737101449612,-1474.39,0.000228,14]
[349293639,1737101449621,-3654.03,0.000228,14]
[349293640,1737101449631,-215.0538638,0.00022822,2]
[349293641,1737101449641,-154.0316351,0.00022822,2]
[349293642,1737101449651,-158.0704113,0.00022822,2]
[349293643,1737101449660,-307.7226899,0.00022822,2]
[349293644,1737101449669,-215.0538638,0.00022822,2]
[349293645,1737101449679,-154.0316351,0.00022822,2]
[349293646,1737101449689,-153.0,0.00022822,2]
[349293647,1737101449698,-153.0,0.00022822,2]
[349293648,1737101449708,-215.0538638,0.00022822,2]
[349293649,1737101449717,-154.0316351,0.00022822,2]
[349293650,1737101449727,-154.0316351,0.00022822,2]
[349293651,1737101449737,-215.0538638,0.00022822,2]
[349293652,1737101449746,-153.0,0.00022822,2]
[349293653,1737101449756,-215.0538638,0.00022822,2]
[349293654,1737101449766,-153.0,0.00022822,2]
[349293655,1737101449775,-154.0316351,0.00022822,2]
[349293656,1737101449785,-153.6962111,0.00022822,2]
[349293657,1737101449794,-215.0538638,0.00022822,2]
[349293658,1737101449804,-153.0,0.00022822,2]
[349293659,1737101449814,-215.0538638,0.00022822,2]
[349293660,1737101449824,-153.0,0.00022822,2]
[349293661,1737101449833,-215.0538638,0.00022822,2]
[349293662,1737101449843,-215.0538638,0.00022822,2]
[349293663,1737101449853,-153.0,0.00022822,2]
[349293664,1737101449862,-1618.0439533,0.00022866,3]
[349293665,1737101449872,-190.82007561,0.00022876,3]
[349293666,1737101449882,-500.0,0.00022876,3]
[349293667,1737101449892,-256.8122009,0.00022876,3]
[349293668,1737101449902,-2472.22,0.00022876,3]
[349293669,1737101449911,-500.0,0.00022876,3]
[349293670,1737101449920,-500.0,0.00022876,3]
[349293671,1737101449930,-500.0,0.00022876,3]
[349293672,1737101449940,-2477.5,0.00022876,3]
[349293673,1737101449949,-505.617168,0.00022876,7]
[349293674,1737101449958,-505.617168,0.00022876,7]
[349293675,1737101449968,-500.0,0.00022876,2]
[349293676,1737101449977,-13159.47,0.00022876,3]
[349293677,1737101449987,-1455.27,0.00022876,3]
[349293678,1737101449997,-653.03,0.00022876,2]
[349293679,1737101450007,-834.57,0.00022876,3]
[349293680,1737101450016,-17378.52,0.00022876,3]
[349293681,1737101450026,-499.5992049,0.00022876,3]
[349293682,1737101450036,-500.0,0.00022876,3]
[349293683,1737101450046,-500.0,0.00022876,3]
[349293684,1737101450055,-500.0,0.00022876,3]
[349293685,1737101450066,-1561.39,0.00022876,3]
[349293686,1737101450075,-1021.02,0.00022876,3]
[349293687,1737101450086,-14393.76,0.00022876,3]
[349293688,1737101450095,-500.0,0.00022876,3]
[349293689,1737101450105,-500.0,0.00022876,3]
[349293690,1737101450115,-500.0,0.00022876,3]
[349293691,1737101450124,-1412.08,0.00022876,3]
[349293692,1737101450133,-590.22,0.00022876,3]
[349293693,1737101450143,-500.0,0.00022876,3]
[349293694,1737101450152,-500.0,0.00022876,3]
[349293695,1737101450162,-3854.5,0.00022876,3]
[349293696,1737101450171,-500.0,0.00022876,3]
[349293697,1737101450181,-1014.36,0.00022876,3]
[349293698,1737101450191,-500.0,0.00022876,3]
[349293699,1737101450201,-500.0,0.00022876,3]
[349293700,1737101450210,-4907.47,0.00022876,3]
[349293701,1737101450220,-500.0,0.00022876,3]
[349293702,1737101450230,-5287.59,0.00022876,3]
[349293703,1737101450240,-1330.37,0.00022876,3]
[349293704,1737101450251,-2909.15,0.00022876,3]
[349293705,1737101450261,-500.0,0.00022876,3]
[349293706,1737101450271,-504.28223705,0.00022876,3]
[349293707,1737101450282,-500.0,0.00022876,3]
[349293708,1737101450295,-838.79,0.00022876,3]
[349293709,1737101450305,-151.0,0.00022881,7]
[349293710,1737101450314,-924.97235023,0.000229,2]
[349293711,1737101450325,-1618.0439533,0.00022934,3]
[349293712,1737101450336,-160.0,0.00022941,8]
[349293713,1737101450346,-924.97235017,0.00022972,2]
[349293714,1737101450356,-500.0,0.00022973,2]
[349293715,1737101450470,-500.0,0.00022973,2]
[349293716,1737101450481,-500.38145999,0.00022973,2]
[349293717,1737101450491,-500.0,0.00022973,2]
[349293718,1737101450502,-500.0,0.00022973,2]
[349293719,1737101450512,-239.91720094,0.00022999,2]
[349293720,1737101450522,-883717.71639038,0.00023,2]
[349293721,1737101450531,-1000.0,0.00023,23]
[349293722,1737101450540,-500.0,0.00023,2]
[349293723,1737101450550,-500.0,0.00023,2]
[349293724,1737101450559,-500.0,0.00023,2]
[349293725,1737101450569,-500.0,0.00023,2]
[349293726,1737101450579,-500.0,0.00023,2]
[349293727,1737101450588,-500.0,0.00023,2]
[349293728,1737101450598,-62407.44478294,0.00023,2]
[349293729,1737101450608,-7438.69753278,0.00023,2]
[349293730,1737101450617,-10517.01892093,0.00023,7]
[349293731,1737101450627,-151.0,0.00023,7]
[349293732,1737101450637,-151.0,0.00023,7]
[349293733,1737101450647,-505.617168,0.00023,7]
[349293734,1737101450656,-505.617168,0.00023,7]
[349293735,1737101450669,-154.692066,0.00023,7]
[349293736,1737101450679,-154.692066,0.00023,7]
[349293737,1737101450689,-151.0,0.00023,7]
[349293738,1737101450700,-151.0,0.00023,7]
[349293739,1737101450710,-7438.69753278,0.00023,3]
[349293740,1737101450721,-236.877402,0.00023,7]
[349293741,1737101450731,-318.555153,0.00023,7]
[349293742,1737101450740,-318.555153,0.00023,7]
[349293743,1737101450751,-151.0,0.00023,7]
[349293744,1737101450762,-151.0,0.00023,7]
[349293745,1737101450772,-1618.0439533,0.00023003,3]
[349293746,1737101450782,-150.53853161,0.00023013,2]
[349293747,1737101450792,-500.0,0.00023013,2]
[349293748,1737101450802,-500.0,0.00023013,3]
[349293749,1737101450812,-500.0,0.00023013,3]
[349293750,1737101450822,-2472.22,0.00023013,3]
[349293751,1737101450832,-646.81,0.00023013,3]
[349293752,1737101450842,-500.0,0.00023013,3]
[349293753,1737101450853,-500.0,0.00023013,3]
[349293754,1737101450863,-2477.5,0.00023013,3]
[349293755,1737101450873,-505.617168,0.00023013,7]
[349293756,1737101450883,-505.617168,0.00023013,7]
[349293757,1737101450893,-500.0,0.00023013,2]
[349293758,1737101450903,-13159.47,0.00023013,3]
[349293759,1737101450916,-1455.27,0.00023013,3]
[349293760,1737101450926,-653.03,0.00023013,2]
[349293761,1737101450936,-154.692066,0.00023013,7]
[349293762,1737101450945,-154.692066,0.00023013,7]
[349293763,1737101450956,-834.57,0.00023013,3]
[349293764,1737101450965,-17378.52,0.00023013,3]
[349293765,1737101450976,-500.0,0.00023013,3]
[349293766,1737101450986,-500.0,0.00023013,3]
[349293767,1737101450996,-500.0,0.00023013,3]
[349293768,1737101451006,-318.555153,0.00023013,7]
[349293769,1737101451016,-1561.39,0.00023013,3]
[349293770,1737101451026,-318.555153,0.00023013,7]
[349293771,1737101451036,-1021.02,0.00023013,3]
[349293772,1737101451047,-14393.76,0.00023013,3]
[349293773,1737101451057,-151.0,0.00023013,7]
[349293774,1737101451066,-500.0,0.00023013,3]
[349293775,1737101451075,-500.0,0.00023013,3]
[349293776,1737101451085,-215.67168,0.00023013,7]
[349293777,1737101451095,-500.0,0.00023013,3]
[349293778,1737101451105,-1412.08,0.00023013,3]
[349293779,1737101451115,-590.22,0.00023013,3]
[349293780,1737101451124,-500.0,0.00023013,3]
[349293781,1737101451134,-500.0,0.00023013,3]
[349293782,1737101451145,-3854.5,0.00023013,3]
[349293783,1737101451154,-500.0,0.00023013,3]
[349293784,1737101451169,-1014.36,0.00023013,3]
[349293785,1737101451179,-500.0,0.00023013,3]
[349293786,1737101451190,-500.0,0.00023013,3]
[349293787,1737101451201,-4907.47,0.00023013,3]
[349293788,1737101451211,-500.0,0.00023013,3]
[349293789,1737101451221,-5287.59,0.00023013,3]
[349293790,1737101451233,-1330.37,0.00023013,3]
[349293791,1737101451243,-2909.15,0.00023013,3]
[349293792,1737101451253,-536.67018635,0.00023013,3]